bitfinex/quotes_ETHUSD_20250413
["timestamp","ask_amount","ask_price","bid_price","bid_amount"]
[1744561466740,12.83256,1594.5,1593.8,12.34057042]
[1744561466741,7.07008,1594.4,1593.9,6.27384]
[1744561466937,12.54505,1594.3,1593.9,6.27384]
[1744561467137,12.54505,1594.3,1593.9,7.609571]
[1744561467338,6.27247,1594.3,1593.9,13.883331]
[1744561467539,13.34188,1594.4,1594.0,6.27344]
[1744561468036,6.27236,1594.3,1594.0,6.27344]
[1744561468440,7.06979,1594.4,1594.0,6.27339]
[1744561468665,13.34198,1594.4,1594.0,6.27339]
[1744561469078,6.584,1594.3,1594.1,7.07506]
[1744561469443,6.584,1594.3,1594.0,13.9351561]
[1744561470244,6.584,1594.3,1594.1,6.27311]
[1744561470550,7.3471,1594.3,1594.0,6.27334]
[1744561470946,13.61944,1594.3,1594.0,6.27334]
[1744561471778,7.3471,1594.3,1594.1,6.27308]
[1744561472077,6.584,1594.3,1594.1,6.27308]
[1744561472676,6.584,1594.3,1594.0,12.5467]
[1744561473177,12.85635,1594.3,1594.0,6.27334]
[1744561473350,7.03587,1594.2,1593.9,6.27374]
[1744561473542,7.03587,1594.2,1593.9,12.54753]
[1744561473746,7.03587,1594.2,1593.8,13.37612]
[1744561473747,13.30882,1594.2,1593.8,13.37612]
[1744561473966,7.03587,1594.2,1593.8,7.10174]
[1744561474374,7.03587,1594.2,1593.9,6.27391]
[1744561476347,0.7631,1594.2,1594.0,6.27325]
[1744561476678,12.85827,1594.1,1593.8,7.10177]
[1744561476875,6.585,1594.1,1593.9,6.27391]
[1744561477192,12.85745,1594.3,1594.0,6.27328]
[1744561477378,20.715745,1594.3,1594.0,6.27328]
[1744561477569,20.715745,1594.3,1593.9,12.5477]
[1744561478067,13.36351,1594.2,1593.9,6.27386]
[1744561478282,7.0906,1594.2,1593.9,6.27386]
[1744561478484,0.8177,1594.2,1593.9,6.27377]
[1744561478787,7.09044,1594.2,1593.9,6.27377]
[1744561479590,13.36335,1594.2,1593.9,6.27377]
[1744561479788,6.27321,1594.1,1593.8,7.10187]
[1744561479968,6.27321,1594.1,1593.8,14.086217]
[1744561480168,7.09044,1594.2,1593.9,6.2739]
[1744561480368,7.09044,1594.2,1594.0,0.12302777]
[1744561481189,6.17,1594.6,1594.5,6.27155]
[1744561481396,6.9617,1595.2,1594.5,0.13805779]
[1744561481604,20.865466,1595.2,1594.8,6.27024]
[1744561481902,20.865466,1595.2,1594.9,0.13854696]
[1744561482064,3.0,1595.1,1594.9,0.13854696]
[1744561482260,15.53877,1595.1,1594.7,7.05714]
[1744561482460,8.6559326,1595.1,1595.0,0.13854696]
[1744561482655,15.2419326,1595.1,1594.7,13.32776]
[1744561482856,15.2419326,1595.1,1594.8,0.13854696]
[1744561482857,6.26998,1594.9,1594.8,0.13854696]
[1744561483073,7.06168,1594.9,1594.8,0.13854696]
[1744561483276,6.27062,1594.8,1594.4,13.32995]
[1744561483510,12.85605,1594.7,1594.3,6.27231]
[1744561483662,0.7917,1594.6,1594.3,6.27231]
[1744561483866,7.06302,1594.6,1594.2,7.05911]
[1744561484068,7.06302,1594.6,1594.2,7.05898]
[1744561484510,6.27158,1594.5,1594.2,6.27258]
[1744561484664,6.27197,1594.4,1594.0,13.33325]
[1744561484859,6.27197,1594.4,1594.1,1.333325]
[1744561485091,6.2728,1594.2,1593.9,6.27391]
[1744561485300,12.54575,1594.2,1593.8,7.755447]
[1744561485506,6.27315,1594.1,1593.8,7.755447]
[1744561486710,6.2728,1594.2,1593.9,6.27389]
[1744561487091,6.586,1594.2,1594.0,6.2734]
[1744561487290,6.586,1594.2,1594.0,7.528115]
[1744561487609,6.586,1594.2,1594.1,6.41045401]
[1744561488202,14.34576319,1597.2,1594.5,6.27147]
[1744561488203,13.5878,1594.7,1594.5,6.27147]
[1744561488366,12.756,1594.7,1594.6,0.13659033]
[1744561488577,15.756,1594.7,1594.6,0.13659033]
[1744561488803,3.0,1594.6,1594.5,6.27147]
[1744561488985,3.0,1594.6,1594.5,7.525806]
[1744561489584,12.756,1594.7,1594.5,13.797186]
[1744561489879,15.756,1594.7,1594.6,0.13659033]
[1744561490076,15.756,1594.7,1594.6,6.40775033]
[1744561490280,15.756,1594.7,1594.6,0.13659033]
[1744561490677,12.756,1594.7,1594.6,1.52996296]
[1744561491306,6.17,1594.7,1594.6,8.60262296]
[1744561491473,6.17,1594.7,1594.6,1.52996296]
[1744561492007,3.0,1594.9,1594.6,7.80112296]
[1744561492228,6.585,1594.8,1594.6,12.67878033]
[1744561492515,6.585,1594.8,1594.6,6.40762033]
[1744561492690,12.85538,1594.8,1594.6,0.13659033]
[1744561493207,19.12597,1594.8,1594.6,0.13659033]
[1744561493409,6.585,1594.8,1594.6,6.40761033]
[1744561493621,6.585,1594.8,1594.6,7.67537536]
[1744561493826,6.585,1594.8,1594.6,1.40450536]
[1744561494222,6.585,1594.8,1594.6,0.13659033]
[1744561494596,6.26922,1595.1,1594.8,6.27014]
[1744561494927,3.0,1595.1,1594.7,0.8015]
[1744561495096,6.2697,1595.0,1594.9,0.12021165]
[1744561495831,6.2697,1595.0,1594.7,7.07208]
[1744561495994,6.2697,1595.0,1594.9,0.12021165]
[1744561496195,6.2697,1595.0,1594.7,7.07208]
[1744561496412,6.2697,1595.0,1594.8,0.12021165]
[1744561497200,12.5387,1595.1,1594.8,0.12021165]
[1744561498192,12.755,1595.2,1594.8,0.12021165]
[1744561498393,3.0,1595.1,1594.9,6.26964]
[1744561498620,19.02398,1595.2,1594.9,6.26964]
[1744561498819,19.02398,1595.2,1595.0,0.12021165]
[1744561500226,19.02398,1595.2,1594.9,6.26996]
[1744561500423,19.02398,1595.2,1595.0,0.12021165]
[1744561500629,25.29297,1595.2,1594.8,12.54068]
[1744561500808,25.29306,1595.2,1594.9,0.12021165]
[1744561501022,19.02398,1595.2,1594.9,6.26991]
[1744561501215,25.29307,1595.2,1594.8,13.874718]
[1744561501416,19.02398,1595.2,1594.9,6.39014165]
[1744561501817,12.755,1595.2,1594.9,12.65996165]
[1744561502038,0.02,1595.4,1595.3,6.26841]
[1744561502250,0.02,1595.4,1595.3,7.04931]
[1744561502546,0.02,1595.4,1595.3,7.16756701]
[1744561504390,0.02,1595.4,1595.3,7.23024234]
[1744561504789,0.02,1595.4,1595.3,10.78024234]
[1744561504953,0.3925806,1595.8,1595.7,7.01964]
[1744561505460,0.3925806,1595.8,1595.7,7.08229848]
[1744561506201,0.3925806,1595.8,1595.7,7.63229848]
[1744561506407,0.13283851,1596.3,1596.0,7.56846]
[1744561506697,6.25962,1597.6,1596.9,0.7528]
[1744561506843,6.49687694,1597.7,1597.1,6.81115]
[1744561506844,0.32687694,1597.7,1597.1,6.81115]
[1744561507044,0.7724,1597.9,1597.0,0.06260174]
[1744561507045,0.7724,1597.9,1597.2,6.2607]
[1744561507278,7.4054,1597.9,1597.3,6.26056]
[1744561507591,0.7724,1597.9,1597.3,7.07595398]
[1744561507747,0.7724,1597.9,1597.0,7.01451]
[1744561507748,6.25997,1597.5,1597.0,7.01451]
[1744561508088,6.25947,1597.6,1597.2,6.26064]
[1744561508239,7.4024,1597.9,1597.3,6.26056]
[1744561508443,3.0,1597.7,1597.3,6.32316044]
[1744561508660,6.58401765,1598.2,1597.3,7.01336]
[1744561508661,6.25762,1598.1,1597.3,7.01336]
[1744561508864,12.5154,1598.1,1597.3,7.01336]
[1744561509065,12.5154,1598.1,1597.3,7.07594933]
[1744561509294,6.25762,1598.1,1597.3,9.62263526]
[1744561509498,12.90648,1598.4,1597.3,0.7528]
[1744561509499,6.25932,1597.7,1597.3,0.7528]
[1744561509696,6.25944,1597.6,1597.2,6.26075]
[1744561510401,6.9716,1598.0,1597.3,7.61656]
[1744561510590,12.428,1598.0,1597.3,14.24456]
[1744561510777,3.0,1597.9,1597.3,14.24456]
[1744561510974,3.0,1597.9,1597.3,13.69456]
[1744561511298,12.51787,1597.8,1597.3,7.06656]
[1744561511486,3.0,1597.6,1597.1,6.26119]
[1744561511685,6.25863,1597.8,1597.3,6.26056]
[1744561511890,6.25876,1597.8,1597.3,6.26056]
[1744561512089,6.25957,1597.6,1597.2,6.26095]
[1744561512285,6.17,1598.0,1597.3,6.26056]
[1744561512586,6.17,1598.3,1597.3,10.61656]
[1744561512803,6.25768,1598.1,1597.3,10.61656]
[1744561513301,6.25827,1597.9,1597.3,10.06656]
[1744561513507,6.25882,1597.8,1597.3,8.76189857]
[1744561513712,6.25882,1597.8,1597.3,8.699311]
[1744561515098,9.25827,1597.9,1597.3,8.699311]
[1744561515302,6e-07,1597.4,1597.3,12.3119053]
[1744561515503,6e-07,1597.4,1597.3,15.91101454]
[1744561515808,6e-07,1597.4,1597.3,16.77912992]
[1744561515998,6e-07,1597.4,1597.3,16.57912992]
[1744561516196,0.02,1598.4,1598.3,6.25664]
[1744561516397,0.02,1598.4,1598.2,6.25682]
[1744561516772,6.25669,1598.3,1598.0,7.08819]
[1744561516967,0.7631,1598.3,1597.7,7.08926]
[1744561517185,6.25801,1598.0,1597.6,6.25914]
[1744561517472,6.25679,1598.3,1597.9,6.25807]
[1744561517710,6.25679,1598.3,1598.0,0.06257114]
[1744561517916,0.02,1598.4,1597.8,6.25855]
[1744561518119,9.27662,1598.4,1598.0,6.25754]
[1744561518413,0.02,1598.4,1598.2,6.2569]
[1744561518789,0.02,1598.4,1598.1,6.25729]
[1744561519012,0.02,1598.4,1598.2,6.31954215]
[1744561519176,6.27641,1598.4,1598.0,12.51529]
[1744561519512,0.02,1598.4,1598.1,6.3196795]
[1744561519717,6.97342426,1598.9,1597.8,0.46259848]
[1744561519718,12.41929,1600.2,1598.8,12.50938]
[1744561519920,6.25019,1600.0,1599.6,0.7626]
[1744561520091,0.02,1600.4,1599.6,0.0624962]
[1744561520416,0.02,1600.4,1599.5,7.01453]
[1744561520417,6.24954,1600.2,1599.5,0.7626]
[1744561520719,4.16320924,1600.0,1599.2,0.7626]
[1744561520874,6.25342,1599.2,1598.8,7.01722]
[1744561521076,6.25342,1599.2,1598.8,3.7626]
[1744561521272,7.473,1599.5,1598.8,0.7626]
[1744561521472,6.25299,1599.3,1598.8,0.7626]
[1744561521677,6.25234,1599.4,1598.9,0.55]
[1744561521916,7.579181,1599.4,1598.9,6.25411]
[1744561522097,7.01605,1599.5,1599.0,6.25364]
[1744561522407,60.36101092,1599.9,1599.0,6.25364]
[1744561522408,0.7641,1599.8,1599.0,6.25388]
[1744561522705,6.25314,1599.2,1598.8,7.01724]
[1744561522932,6.2541,1599.0,1598.8,0.7626]
[1744561523089,9.25293,1599.3,1598.8,6.25443]
[1744561523294,7.471,1599.2,1598.9,6.25411]
[1744561523915,6.25236,1599.4,1598.7,0.97740754]
[1744561523916,9.25195,1599.5,1599.0,0.06253174]
[1744561524180,7.471,1599.7,1599.2,6.25289]
[1744561524415,13.72184,1599.8,1599.3,6.25255]
[1744561524580,15.76069509,1599.8,1599.3,6.25255]
[1744561524790,6.25122,1599.7,1599.3,6.25255]
[1744561525283,6.25122,1599.7,1599.0,7.01649]
[1744561525284,6.25158,1599.6,1599.1,6.25326]
[1744561525490,6.25122,1599.7,1599.2,6.25293]
[1744561525719,6.25122,1599.7,1599.0,0.7626]
[1744561525720,6.25226,1599.5,1599.0,7.01649]
[1744561525907,6.25226,1599.5,1599.1,6.25346]
[1744561526305,6.251,1599.8,1599.3,6.25246]
[1744561526515,0.49516191,1600.4,1599.4,0.06251032]
[1744561526681,0.49516191,1600.4,1599.2,8.294]
[1744561526682,6.25094,1599.8,1599.3,6.31491983]
[1744561526883,4.26716191,1600.4,1599.2,7.62777]
[1744561526884,6.25017,1600.0,1599.2,7.62777]
[1744561527101,13.71895,1600.1,1599.6,6.80126]
[1744561527301,0.3925806,1600.5,1600.4,0.55]
[1744561527480,0.3925806,1600.5,1600.3,7.07364]
[1744561527809,6.6408706,1600.5,1600.1,0.06246987]
[1744561527987,6.6408706,1600.5,1599.9,7.07523]
[1744561527988,6.24861,1600.4,1599.9,7.07523]
[1744561528189,0.624861,1600.3,1600.0,6.24982]
[1744561528387,6.24966,1600.1,1599.6,7.07631]
[1744561528596,6.24938,1600.2,1599.7,6.25081]
[1744561528801,6.24938,1600.2,1599.8,6.25068]
[1744561529018,0.3925806,1600.5,1599.8,6.25078]
[1744561529329,0.3925806,1600.5,1599.4,3.29353352]
[1744561529330,0.3925806,1600.5,1600.4,6.79843]
[1744561529526,0.3925806,1600.5,1600.4,8.185649]
[1744561529701,6e-07,1600.5,1600.4,8.185649]
[1744561529899,6e-07,1600.5,1600.4,11.24810751]
[1744561530096,6e-07,1600.5,1600.4,11.185649]
[1744561530434,6e-07,1600.5,1600.4,6.24843]
[1744561530584,6e-07,1600.5,1600.4,0.0624642]
[1744561530785,6e-07,1600.5,1600.3,0.06247206]
[1744561531024,6e-07,1600.5,1600.0,0.06248005]
[1744561531224,6e-07,1600.5,1600.3,6.24866]
[1744561531529,6.2481506,1600.5,1600.0,6.24998]
[1744561531831,6.24862,1600.4,1600.0,6.24975]
[1744561532030,3.7823006,1600.5,1599.8,6.25052]
[1744561532216,6.2494,1600.2,1599.8,6.25052]
[1744561532419,6.2494,1600.2,1599.7,6.31363759]
[1744561532729,6.24982,1600.1,1599.7,6.25099]
[1744561532926,6.24982,1600.1,1599.6,13.28782]
[1744561533228,6.24982,1600.1,1599.7,0.06250364]
[1744561533229,12.49969,1600.1,1599.7,0.06250364]
[1744561533429,14.537359,1600.1,1599.7,6.31363364]
[1744561534045,6.25005,1600.0,1599.6,7.03632]
[1744561534344,6.62684006,1600.4,1600.0,6.24976]
[1744561534544,0.37823006,1600.4,1600.1,0.062489]
[1744561534747,6e-07,1600.5,1600.4,6.24843]
[1744561534900,6e-07,1600.5,1600.4,6.31089399]
[1744561536011,6e-07,1600.5,1600.4,6.86089399]
[1744561536356,0.012,1600.8,1600.7,6.79726]
[1744561536501,1e-05,1600.8,1600.7,9.85970388]
[1744561536707,0.025,1601.0,1600.9,6.24648]
[1744561537031,0.025,1601.0,1600.9,6.30892677]
[1744561537232,0.025,1601.0,1600.9,6.30893116]
[1744561537549,0.025,1601.0,1600.9,6.3089347]
[1744561538242,6.27132,1601.0,1600.6,6.2473]
[1744561538415,6.24659,1600.9,1600.5,6.248]
[1744561538619,6.27132,1601.0,1600.6,6.24762]
[1744561538821,6.27132,1601.0,1600.7,12.49431]
[1744561538822,0.652132,1601.0,1600.7,12.49431]
[1744561539243,6.898592,1601.0,1600.6,6.31000756]
[1744561539454,0.652132,1601.0,1600.1,0.7842]
[1744561539662,6.24833,1600.5,1600.1,12.49896]
[1744561539956,12.49654,1600.4,1600.0,6.24976]
[1744561540254,6.24785,1600.4,1600.0,6.24976]
[1744561540755,6.24804,1600.5,1599.8,0.7842]
[1744561541036,6.24804,1600.5,1599.7,6.25114]
[1744561541037,6.24966,1600.1,1599.7,6.25098]
[1744561541261,6.24966,1600.1,1599.7,12.50196]
[1744561541428,12.50041,1600.0,1599.6,6.25152]
[1744561541623,6.25057,1599.9,1599.5,6.25179]
[1744561541826,8.166,1600.1,1599.7,6.25084]
[1744561542026,14.41574,1600.1,1599.7,6.875924]
[1744561542452,6.25136,1599.7,1599.3,7.015347]
[1744561542662,7.04162,1599.8,1599.4,6.31471638]
[1744561542863,13.29272,1599.8,1599.4,6.31471638]
[1744561543010,6.25159,1599.6,1598.9,0.8301]
[1744561543208,6.25195,1599.5,1599.0,6.25363]
[1744561543451,6.25003,1600.0,1599.6,6.25135]
[1744561543761,7.04041,1600.1,1599.8,6.25048]
[1744561543762,0.7908,1600.1,1599.8,6.25048]
[1744561544060,0.7908,1600.1,1599.7,6.25112]
[1744561544216,7.04057,1600.1,1599.7,6.25112]
[1744561544416,7.04057,1600.1,1599.6,6.25133]
[1744561544617,7.04057,1600.1,1599.7,6.25112]
[1744561544844,3.0,1600.3,1599.9,6.25033]
[1744561544845,15.49797,1600.3,1599.9,6.25033]
[1744561545016,6.24935,1600.2,1599.8,6.31326348]
[1744561545239,9.24884,1600.3,1599.8,6.31326348]
[1744561545240,6.24974,1600.1,1599.8,0.06250348]
[1744561545440,6.24974,1600.1,1599.7,6.31346232]
[1744561545642,6.24974,1600.1,1599.7,7.63247485]
[1744561545817,6.24974,1600.1,1599.7,7.56997253]
[1744561546017,6.24974,1600.1,1599.7,7.56995253]
[1744561546216,6.24927,1600.2,1599.8,6.25074]
[1744561546413,6.24974,1600.1,1599.7,7.56995253]
[1744561546614,6.24974,1600.1,1599.6,0.625133]
[1744561546615,6.24963,1600.1,1599.6,0.625133]
[1744561546859,8.47,1600.0,1599.7,6.25102]
[1744561547242,8.47,1600.0,1599.8,6.25078]
[1744561547615,8.47,1600.2,1599.9,6.25009]
[1744561548040,8.47,1600.2,1599.9,6.31258727]
[1744561548238,8.47,1600.2,1599.9,6.29987691]
[1744561548644,14.71922,1600.2,1599.9,6.29987691]
[1744561548843,8.47,1600.2,1599.7,6.25114]
[1744561549015,14.71941,1600.2,1599.7,7.501299]
[1744561549217,6.24961,1600.1,1599.7,12.50199]
[1744561549548,6.24961,1600.1,1599.7,6.25096]
[1744561549744,6.24984,1600.1,1599.4,0.55]
[1744561549931,6.25032,1600.0,1599.3,7.0828]
[1744561550131,6.25032,1600.0,1599.7,6.25113]
[1744561550740,14.71931,1600.2,1599.8,6.25076]
[1744561550941,20.96878,1600.2,1599.8,6.25076]
[1744561551439,14.71931,1600.2,1599.8,6.2506]
[1744561551626,20.96877,1600.2,1599.8,6.2506]
[1744561551827,6.24961,1600.1,1599.8,6.2506]
[1744561552031,6.24961,1600.1,1599.7,13.752448]
[1744561552454,12.49943,1600.1,1599.7,7.501348]
[1744561552748,6.2496,1600.1,1599.5,6.25189]
[1744561552927,6.2504,1599.9,1599.5,6.25178]
[1744561553835,12.501,1599.9,1599.5,6.25178]
[1744561554043,6.25085,1599.8,1599.4,6.25217]
[1744561554240,12.50195,1599.8,1599.4,12.50435]
[1744561554551,0.7783,1599.9,1599.4,1.333445]
[1744561554552,6.2512,1599.7,1599.4,1.333445]
[1744561554755,6.25158,1599.6,1599.3,6.25257]
[1744561554921,6.25158,1599.6,1599.2,6.25312]
[1744561555247,6.25207,1599.5,1599.2,6.25312]
[1744561555453,6.25207,1599.5,1599.1,6.878833]
[1744561555754,6.25207,1599.5,1599.2,0.6878833]
[1744561555948,6.2525,1599.4,1599.2,0.6878833]
[1744561556249,6.25312,1599.2,1599.1,0.625363]
[1744561556452,6.25352,1599.1,1598.7,6.25502]
[1744561556654,6.25312,1599.2,1598.5,6.72645442]
[1744561556950,6.25531,1598.7,1598.5,0.47072442]
[1744561557258,6.25614,1598.5,1598.3,5.41456554]
[1744561557413,7.03801,1598.9,1598.3,5.41456554]
[1744561557414,6.25552,1598.6,1598.3,5.41456554]
[1744561557614,6.25474,1598.8,1598.4,0.06256221]
[1744561557822,0.7837,1598.9,1598.3,5.41456554]
[1744561557823,6.25573,1598.6,1598.3,5.41456554]
[1744561558146,6.2551,1598.7,1598.3,11.67120554]
[1744561558321,8.47,1598.6,1598.3,5.41456554]
[1744561558521,14.72569,1598.6,1598.3,5.41456554]
[1744561558947,8.47,1598.6,1598.3,6.25662]
[1744561559151,8.47,1598.6,1598.3,6.31898943]
[1744561559320,8.47,1598.6,1598.3,6.95088837]
[1744561559515,8.47,1598.6,1598.4,6.25617]
[1744561559744,8.47,1598.6,1598.4,6.2561]
[1744561559954,8.47,1598.6,1598.1,6.27738]
[1744561559955,6.256,1598.5,1598.1,6.27738]
[1744561560253,6.25597,1598.5,1598.1,0.02]
[1744561560421,6.25597,1598.5,1598.1,0.647744]
[1744561560616,6.25597,1598.5,1598.1,6.904914]
[1744561560821,14.72549,1598.6,1598.2,6.25689]
[1744561561170,7.03838,1598.9,1598.5,6.2557]
[1744561561171,7.03817,1598.9,1598.5,6.2557]
[1744561561328,6.879142,1599.1,1598.4,0.7847]
[1744561561665,6.25411,1599.0,1598.6,6.25547]
[1744561561824,12.50826,1599.0,1598.6,6.25547]
[1744561562019,15.352862,1599.1,1598.5,0.06254927]
[1744561562226,15.352862,1599.1,1598.7,6.25476]
[1744561562227,0.625312,1599.1,1598.7,6.25476]
[1744561562521,3.0,1599.2,1598.6,0.0625437]
[1744561562722,6.25459,1598.9,1598.5,6.25582]
[1744561562969,6.25395,1599.0,1598.6,6.25545]
[1744561562970,12.50811,1599.0,1598.6,6.25545]
[1744561563168,0.8288,1598.8,1598.3,6.25654]
[1744561563341,0.8288,1598.8,1598.4,6.25623]
[1744561563519,7.08364,1598.8,1598.4,6.25623]
[1744561563735,13.33857,1598.8,1598.4,6.31878475]
[1744561564039,7.08364,1598.8,1598.4,6.25623]
[1744561564241,7.08364,1598.8,1598.5,6.25583]
[1744561564242,0.8288,1598.8,1598.5,6.25583]
[1744561564778,7.08384,1598.8,1598.5,6.2558]
[1744561564956,6.25448,1598.9,1598.5,7.51307893]
[1744561565161,6.25448,1598.9,1598.5,12.51127]
[1744561565372,6.2541,1599.0,1598.3,6.882194]
[1744561565672,6.25444,1598.9,1598.5,12.51152]
[1744561565844,6.25469,1598.8,1598.4,6.25612]
[1744561566038,6.25513,1598.7,1598.4,6.90146726]
[1744561566238,12.50965,1598.8,1598.4,6.90146726]
[1744561566469,7.05969,1598.7,1598.3,6.882244]
[1744561566670,7.05969,1598.7,1598.2,6.25698]
[1744561566671,6.25586,1598.5,1598.1,0.647744]
[1744561566870,14.73061,1598.6,1598.2,6.25681]
[1744561567074,14.73061,1598.6,1598.2,12.51364]
[1744561567275,14.73061,1598.6,1598.3,6.25663]
[1744561567682,6.25663,1598.4,1598.1,0.02]
[1744561567986,6.25651,1598.4,1598.1,0.02]
[1744561568485,6.25703,1598.2,1598.1,0.02]
[1744561569382,7.584744,1598.2,1598.1,0.02]
[1744561570474,11.344044,1598.2,1598.1,0.02]
[1744561570875,6.25906,1597.7,1597.3,6.26035]
[1744561571075,13.2776,1597.7,1597.3,6.26035]
[1744561571279,7.01836,1597.7,1597.3,12.52073]
[1744561571486,13.27757,1597.7,1597.3,6.26035]
[1744561571983,6.17,1598.2,1597.9,6.25792]
[1744561572188,66.93009,1598.3,1597.9,6.25792]
[1744561572391,66.92993,1598.3,1597.9,6.25792]
[1744561572557,66.93004,1598.3,1597.9,6.25792]
[1744561572759,6.25722,1598.2,1597.8,12.51716]
[1744561572984,6.25722,1598.2,1597.9,1.251716]
[1744561573151,0.7593,1598.3,1597.9,1.251716]
[1744561573357,0.7593,1598.3,1597.9,6.25802]
[1744561573676,0.7593,1598.3,1598.0,12.51534]
[1744561574187,13.27136,1598.5,1598.1,6.25709]
[1744561574588,0.7593,1598.5,1598.2,6.25679]
[1744561574959,7.01516,1598.5,1598.2,6.25679]
[1744561575158,6.25638,1598.4,1598.0,12.51542]
[1744561575364,6.25638,1598.4,1598.1,6.25738]
[1744561575558,6.2567,1598.3,1598.0,6.25765]
[1744561575759,12.51355,1598.3,1597.9,6.25815]
[1744561575986,12.51354,1598.3,1597.9,6.25803]
[1744561576190,6.2563,1598.4,1598.1,6.25728]
[1744561576656,6.2563,1598.4,1598.1,6.31984786]
[1744561576856,7.01551,1598.5,1598.1,7.57755965]
[1744561577057,7.01545,1598.5,1598.1,13.83478965]
[1744561577256,6.25633,1598.4,1598.1,7.51499179]
[1744561577458,6.25633,1598.4,1598.1,7.5775587]
[1744561577657,13.27164,1598.5,1598.1,13.8347987]
[1744561577893,7.01545,1598.5,1598.1,13.77223179]
[1744561578263,0.7593,1598.5,1598.2,12.51406]
[1744561578476,9.25554,1598.6,1598.2,12.51406]
[1744561578676,15.37428,1598.7,1598.3,6.25659]
[1744561578864,6.25571,1598.6,1598.2,7.63406218]
[1744561579186,6.25566,1598.6,1598.2,6.31944307]
[1744561579361,6.25629,1598.4,1598.0,6.32035299]
[1744561579691,12.51288,1598.4,1598.0,6.32025299]
[1744561579989,12.51288,1598.4,1598.0,6.32024299]
[1744561580187,6.25665,1598.3,1598.0,8.41278129]
[1744561580353,6.25629,1598.4,1598.1,6.25731]
[1744561580790,12.51277,1598.4,1598.0,8.3502983]
[1744561580988,12.51277,1598.4,1598.0,6.25776]
[1744561581508,6.25756,1598.1,1597.8,7.01411]
[1744561581785,6.25784,1598.0,1597.7,14.60496]
[1744561582363,6.25784,1598.0,1597.7,14.60484]
[1744561582569,0.777,1598.0,1597.5,6.2596]
[1744561582787,6.25878,1597.8,1597.5,7.80133]
[1744561582983,12.51758,1597.8,1597.4,7.13189047]
[1744561583181,6.25846,1597.9,1597.6,6.25938]
[1744561583764,12.51692,1597.9,1597.5,6.25966]
[1744561583965,6.25944,1597.6,1597.2,6.26067]
[1744561584189,6.2599,1597.5,1597.2,1.335115]
[1744561584499,6.2603,1597.4,1597.1,7.15301565]
[1744561584916,6.2603,1597.4,1597.1,0.02]
[1744561585196,6.26061,1597.3,1597.1,0.02]
[1744561585368,6.26095,1597.2,1597.1,0.02]
[1744561585565,6.26061,1597.3,1597.1,0.02]
[1744561585763,6.2606,1597.3,1597.1,0.02]
[1744561585981,6.26095,1597.2,1597.1,0.02]
[1744561587709,7.05775,1597.2,1597.1,0.02]
[1744561587914,10.05775,1597.2,1597.1,0.02]
[1744561589872,7.05775,1597.2,1597.1,0.02]
[1744561590904,6.26024,1597.4,1597.1,0.02]
[1744561591504,6.26024,1597.4,1597.1,6.28121]
[1744561591686,15.41731,1597.5,1597.1,6.28121]
[1744561591883,17.259041,1597.5,1597.1,6.28121]
[1744561592074,6.17,1597.8,1597.2,0.06261026]
[1744561592075,0.8075,1597.8,1597.2,0.06261026]
[1744561592275,0.8075,1598.0,1597.3,0.751]
[1744561592607,13.32349,1598.0,1597.6,6.25919]
[1744561593379,7.0654,1598.0,1597.6,6.25919]
[1744561593698,6.25829,1597.9,1597.6,6.25919]
[1744561594008,6.25829,1597.9,1597.3,7.01139]
[1744561594009,6.25934,1597.7,1597.3,7.01139]
[1744561594212,6.25934,1597.7,1597.3,7.07398583]
[1744561594782,6.25934,1597.7,1597.4,6.26016]
[1744561594987,6.2605,1597.4,1597.1,0.02]
[1744561595187,6.2609,1597.3,1597.1,0.02]
[1744561596218,6.26077,1597.3,1597.1,0.02]
[1744561597210,12.52157,1597.3,1597.1,0.02]
[1744561597807,6.25992,1597.5,1597.2,6.26094]
[1744561598011,12.51998,1597.5,1597.1,6.28118]
[1744561598309,6.26018,1597.4,1597.1,1.274285]
[1744561598510,6.26018,1597.4,1597.1,0.02]
[1744561598682,0.8005,1597.6,1597.1,0.02]
[1744561598683,6.25978,1597.5,1597.1,0.02]
[1744561598879,6.26095,1597.2,1597.1,0.02]
[1744561599916,6.26074,1597.3,1597.1,0.02]
[1744561600209,12.52155,1597.3,1597.1,0.02]
[1744561600609,6.26095,1597.2,1597.1,0.02]
[1744561602128,13.773625,1597.3,1597.1,0.02]
[1744561602725,6.26095,1597.2,1597.1,0.02]
[1744561603640,7.09085,1597.2,1597.1,0.02]
[1744561603930,15.12385,1597.2,1597.1,0.02]
[1744561604094,17.3875235,1597.2,1597.1,0.02]
[1744561607629,17.85203841,1597.2,1597.1,0.02]
[1744561612049,17.3875235,1597.2,1597.1,0.02]
[1744561612367,14.29395,1597.2,1597.1,0.02]
[1744561612526,17.29395,1597.2,1597.1,0.02]
[1744561612721,9.26095,1597.2,1597.1,0.02]
[1744561614146,8.8529,1597.4,1597.1,0.02]
[1744561614147,6.26035,1597.4,1597.1,0.02]
[1744561614730,12.52081,1597.4,1597.1,0.02]
[1744561615132,6.26035,1597.4,1597.1,0.02]
[1744561615780,12.52083,1597.4,1597.1,0.02]
[1744561616069,6.26051,1597.4,1597.1,0.02]
[1744561616228,6.26057,1597.3,1597.1,0.02]
[1744561617871,6.25994,1597.5,1597.1,6.992271]
[1744561618057,6.26029,1597.4,1597.1,6.992271]
[1744561620479,12.52066,1597.4,1597.1,6.992271]
[1744561620678,9.25949,1597.6,1597.3,6.26032]